[Event "Titled Tuesday Blitz November 29 Late 2022"]
[White "Gubajdullin, Alexei"]
[Black "Liu, Kelsey"]
[WhiteFideId "4141202"]
[BlackFideId "30944481"]
[WhiteElo "2230"]
[BlackElo "2270"]
[Result "0-1"]
[Round "01"]
[TimeControl "180+1"]
[Date "2022.11.30"]
[WhiteClock "0:00:47"]
[BlackClock "0:00:43"]

1. d4 {[%clk 0:03:00]}  Nf6 {[%clk 0:02:59]} 2. Nf3 {[%clk 0:03:00]}  e6 {[%clk 0:02:59]} 3. Bf4 {[%clk 0:03:00]}  d5 {[%clk 0:02:59]} 4. e3 {[%clk 0:03:00]}  Bd6 {[%clk 0:02:59]} 5. Bg3 {[%clk 0:02:57]}  c5 {[%clk 0:02:54]} 6. Nbd2 {[%clk 0:02:56]}  Nc6 {[%clk 0:02:53]} 7. c3 {[%clk 0:02:56]}  b6 {[%clk 0:02:53]} 8. Bb5 {[%clk 0:02:54]}  Bb7 {[%clk 0:02:50]} 9. Ne5 {[%clk 0:02:54]}  Rc8 {[%clk 0:02:34]} 10. Qa4 {[%clk 0:02:53]}  Bxe5 {[%clk 0:02:34]} 11. Bxe5 {[%clk 0:02:46]}  O-O {[%clk 0:02:31]} 12. Bxc6 {[%clk 0:02:30]}  Bxc6 {[%clk 0:02:31]} 13. Qxa7 {[%clk 0:02:29]}  Bb5 {[%clk 0:01:58]} 14. Bxf6 {[%clk 0:02:17]}  Qxf6 {[%clk 0:01:56]} 15. Qxb6 {[%clk 0:02:16]}  Rb8 {[%clk 0:01:53]} 16. Qxc5 {[%clk 0:02:14]}  Qg6 {[%clk 0:01:40]} 17. O-O-O {[%clk 0:01:39]}  Rfc8 {[%clk 0:01:36]} 18. Qa3 {[%clk 0:01:36]}  Ra8 {[%clk 0:01:33]} 19. Qb4 {[%clk 0:01:19]}  Rxa2 {[%clk 0:01:14]} 20. Nb3 {[%clk 0:01:18]}  Bc4 {[%clk 0:01:03]} 21. Nc5 {[%clk 0:01:10]}  h6 {[%clk 0:00:48]} 22. g3 {[%clk 0:01:02]}  Rxc5 {[%clk 0:00:43]} 23. dxc5 {[%clk 0:00:47]}  Ra1+ {[%clk 0:00:43]} 0-1


[Site "https://www.chess.com"]

[Event "Titled Tuesday Blitz November 29 Late 2022"]
[White "Hambleton, Aman"]
[Black "Figorito, Nick"]
[WhiteFideId "2606577"]
[BlackFideId "30923689"]
[WhiteElo "2538"]
[BlackElo "2346"]
[Result "1-0"]
[Round "01"]
[TimeControl "180+1"]
[Date "2022.11.30"]
[WhiteClock "0:00:02"]
[BlackClock "0:00:07"]

1. d4 {[%clk 0:02:57]}  Nf6 {[%clk 0:02:59]} 2. Bf4 {[%clk 0:02:55]}  g6 {[%clk 0:02:55]} 3. Nc3 {[%clk 0:02:47]}  d5 {[%clk 0:02:56]} 4. e3 {[%clk 0:02:45]}  Bg7 {[%clk 0:02:55]} 5. h4 {[%clk 0:02:43]}  h5 {[%clk 0:02:55]} 6. Nf3 {[%clk 0:02:43]}  Bg4 {[%clk 0:02:54]} 7. Be2 {[%clk 0:02:43]}  c6 {[%clk 0:02:54]} 8. Ne5 {[%clk 0:02:43]}  Bxe2 {[%clk 0:02:53]} 9. Qxe2 {[%clk 0:02:44]}  Nbd7 {[%clk 0:02:53]} 10. O-O-O {[%clk 0:02:42]}  Nxe5 {[%clk 0:02:51]} 11. Bxe5 {[%clk 0:02:43]}  Qa5 {[%clk 0:02:38]} 12. f3 {[%clk 0:02:01]}  O-O-O {[%clk 0:02:34]} 13. Kb1 {[%clk 0:01:56]}  Rdg8 {[%clk 0:02:15]} 14. e4 {[%clk 0:01:38]}  e6 {[%clk 0:01:49]} 15. Qd2 {[%clk 0:01:07]}  dxe4 {[%clk 0:01:31]} 16. fxe4 {[%clk 0:01:03]}  Ng4 {[%clk 0:01:21]} 17. Bxg7 {[%clk 0:00:52]}  Rxg7 {[%clk 0:01:22]} 18. Rhf1 {[%clk 0:00:32]}  Qd8 {[%clk 0:01:13]} 19. g3 {[%clk 0:00:28]}  Qd7 {[%clk 0:01:07]} 20. e5 {[%clk 0:00:22]}  Rd8 {[%clk 0:01:02]} 21. Ne4 {[%clk 0:00:20]}  Kb8 {[%clk 0:00:44]} 22. c4 {[%clk 0:00:15]}  Qe7 {[%clk 0:00:30]} 23. Nd6 {[%clk 0:00:14]}  Rxd6 {[%clk 0:00:22]} 24. exd6 {[%clk 0:00:15]}  Qxd6 {[%clk 0:00:23]} 25. Qf4 {[%clk 0:00:11]}  Qxf4 {[%clk 0:00:21]} 26. Rxf4 {[%clk 0:00:12]}  f5 {[%clk 0:00:17]} 27. Re1 {[%clk 0:00:08]}  Re7 {[%clk 0:00:15]} 28. Kc2 {[%clk 0:00:08]}  Kc7 {[%clk 0:00:15]} 29. Kd3 {[%clk 0:00:07]}  Kd7 {[%clk 0:00:15]} 30. Re2 {[%clk 0:00:07]}  Nf6 {[%clk 0:00:09]} 31. Rf1 {[%clk 0:00:05]}  Ne4 {[%clk 0:00:09]} 32. Rxe4 {[%clk 0:00:05]}  fxe4+ {[%clk 0:00:09]} 33. Kxe4 {[%clk 0:00:06]}  Rg7 {[%clk 0:00:07]} 34. Rf4 {[%clk 0:00:02]}  Ke7 {[%clk 0:00:08]} 35. Ke5 {[%clk 0:00:02]}  Rf7 {[%clk 0:00:07]} 36. Rxf7+ {[%clk 0:00:02]}  Kxf7 {[%clk 0:00:08]} 37. Kd6 {[%clk 0:00:02]}  Kf6 {[%clk 0:00:09]} 38. Kc7 {[%clk 0:00:02]}  Kf5 {[%clk 0:00:09]} 39. Kxb7 {[%clk 0:00:02]}  Ke4 {[%clk 0:00:10]} 40. Kxc6 {[%clk 0:00:03]}  Kxd4 {[%clk 0:00:11]} 41. c5 {[%clk 0:00:03]}  e5 {[%clk 0:00:12]} 42. Kd6 {[%clk 0:00:04]}  e4 {[%clk 0:00:13]} 43. c6 {[%clk 0:00:05]}  e3 {[%clk 0:00:14]} 44. c7 {[%clk 0:00:06]}  e2 {[%clk 0:00:15]} 45. c8=Q {[%clk 0:00:06]}  e1=Q {[%clk 0:00:15]} 46. Qc5+ {[%clk 0:00:07]}  Kd3 {[%clk 0:00:16]} 47. Qxa7 {[%clk 0:00:04]}  Qxg3+ {[%clk 0:00:14]} 48. Kc6 {[%clk 0:00:05]}  Qf3+ {[%clk 0:00:14]} 49. Kb5 {[%clk 0:00:03]}  Qd5+ {[%clk 0:00:09]} 50. Qc5 {[%clk 0:00:04]}  Qxa2 {[%clk 0:00:08]} 51. b4 {[%clk 0:00:03]}  Qe2 {[%clk 0:00:04]} 52. Qc4+ {[%clk 0:00:03]}  Kd2 {[%clk 0:00:04]} 53. Qxe2+ {[%clk 0:00:03]}  Kxe2 {[%clk 0:00:05]} 54. Ka5 {[%clk 0:00:02]}  g5 {[%clk 0:00:01]} 55. hxg5 {[%clk 0:00:02]}  h4 {[%clk 0:00:02]} 56. g6 {[%clk 0:00:03]}  h3 {[%clk 0:00:03]} 57. g7 {[%clk 0:00:04]}  h2 {[%clk 0:00:04]} 58. g8=Q {[%clk 0:00:05]}  h1=Q {[%clk 0:00:04]} 59. Qe6+ {[%clk 0:00:05]}  Kd2 {[%clk 0:00:04]} 60. Qd6+ {[%clk 0:00:04]}  Kc3 {[%clk 0:00:04]} 61. Qc5+ {[%clk 0:00:04]}  Kb3 {[%clk 0:00:04]} 62. Qe3+ {[%clk 0:00:02]}  Kc2 {[%clk 0:00:04]} 63. Qe2+ {[%clk 0:00:02]}  Kc3 {[%clk 0:00:05]} 64. Qe3+ {[%clk 0:00:02]}  Kb2 {[%clk 0:00:05]} 65. Qd2+ {[%clk 0:00:02]}  Kb3 {[%clk 0:00:06]} 66. Qd3+ {[%clk 0:00:03]}  Kb2 {[%clk 0:00:06]} 67. b5 {[%clk 0:00:03]}  Qa8+ {[%clk 0:00:06]} 68. Kb4 {[%clk 0:00:03]}  Qb7 {[%clk 0:00:06]} 69. Qd2+ {[%clk 0:00:02]}  Kb1 {[%clk 0:00:06]} 70. Qd1+ {[%clk 0:00:03]}  Kb2 {[%clk 0:00:07]} 71. Qe2+ {[%clk 0:00:03]}  Kb1 {[%clk 0:00:07]} 72. Qe1+ {[%clk 0:00:03]}  Kb2 {[%clk 0:00:08]} 73. Qc3+ {[%clk 0:00:03]}  Kb1 {[%clk 0:00:08]} 74. Qc6 {[%clk 0:00:03]}  Qe7+ {[%clk 0:00:08]} 75. Kc4 {[%clk 0:00:02]}  Qf7+ {[%clk 0:00:08]} 76. Qd5 {[%clk 0:00:02]}  Qb7 {[%clk 0:00:07]} 77. Qxb7 {[%clk 0:00:02]} 1-0


[Site "https://www.chess.com"]

[Event "Titled Tuesday Blitz November 29 Late 2022"]
[White "Hansen, Eric"]
[Black "Santos Flores, Alberto"]
[WhiteFideId "2606771"]
[BlackFideId "3601234"]
[WhiteElo "2952"]
[BlackElo "2505"]
[Result "1-0"]
[Round "01"]
[TimeControl "180+1"]
[Date "2022.11.30"]
[WhiteClock "0:00:28"]
[BlackClock "0:00:11"]

1. d4 {[%clk 0:02:56]}  d5 {[%clk 0:02:59]} 2. c4 {[%clk 0:02:54]}  c6 {[%clk 0:02:58]} 3. Nf3 {[%clk 0:02:54]}  Nf6 {[%clk 0:02:58]} 4. e3 {[%clk 0:02:52]}  Bf5 {[%clk 0:02:56]} 5. Nc3 {[%clk 0:02:51]}  e6 {[%clk 0:02:56]} 6. Bd3 {[%clk 0:02:50]}  Bg6 {[%clk 0:02:53]} 7. O-O {[%clk 0:02:50]}  Nbd7 {[%clk 0:02:53]} 8. b3 {[%clk 0:02:51]}  Bd6 {[%clk 0:02:43]} 9. Bb2 {[%clk 0:02:51]}  Qe7 {[%clk 0:02:42]} 10. Qc2 {[%clk 0:02:49]}  Ba3 {[%clk 0:02:37]} 11. Bxa3 {[%clk 0:02:49]}  Qxa3 {[%clk 0:02:36]} 12. e4 {[%clk 0:02:50]}  dxe4 {[%clk 0:02:36]} 13. Nxe4 {[%clk 0:02:51]}  Nxe4 {[%clk 0:02:31]} 14. Bxe4 {[%clk 0:02:51]}  Bxe4 {[%clk 0:02:26]} 15. Qxe4 {[%clk 0:02:50]}  O-O {[%clk 0:02:25]} 16. Rfe1 {[%clk 0:02:48]}  a5 {[%clk 0:02:23]} 17. Qc2 {[%clk 0:02:47]}  a4 {[%clk 0:02:20]} 18. Rab1 {[%clk 0:02:47]}  axb3 {[%clk 0:02:18]} 19. axb3 {[%clk 0:02:47]}  Rfd8 {[%clk 0:02:10]} 20. Re3 {[%clk 0:02:41]}  Qb4 {[%clk 0:01:59]} 21. Rd1 {[%clk 0:02:36]}  b5 {[%clk 0:01:53]} 22. g3 {[%clk 0:02:31]}  bxc4 {[%clk 0:01:51]} 23. bxc4 {[%clk 0:02:31]}  Ra4 {[%clk 0:01:40]} 24. Rc3 {[%clk 0:02:21]}  Rda8 {[%clk 0:01:31]} 25. Rb1 {[%clk 0:02:15]}  Ra1 {[%clk 0:01:27]} 26. Rb3 {[%clk 0:02:11]}  Rxb1+ {[%clk 0:01:24]} 27. Rxb1 {[%clk 0:02:10]}  Qa3 {[%clk 0:01:19]} 28. Kg2 {[%clk 0:02:09]}  h6 {[%clk 0:01:17]} 29. Qe4 {[%clk 0:01:58]}  Qa4 {[%clk 0:01:10]} 30. Rb7 {[%clk 0:01:52]}  Nf6 {[%clk 0:01:07]} 31. Qe2 {[%clk 0:01:51]}  Rd8 {[%clk 0:01:02]} 32. Rc7 {[%clk 0:01:45]}  Ne8 {[%clk 0:00:55]} 33. Re7 {[%clk 0:01:38]}  Kf8 {[%clk 0:00:51]} 34. Rb7 {[%clk 0:01:34]}  Nd6 {[%clk 0:00:50]} 35. Rc7 {[%clk 0:01:24]}  Qxc4 {[%clk 0:00:46]} 36. Rxf7+ {[%clk 0:01:15]}  Kg8 {[%clk 0:00:38]} 37. Qxc4 {[%clk 0:01:04]}  Nxc4 {[%clk 0:00:39]} 38. Rc7 {[%clk 0:01:04]}  Rd6 {[%clk 0:00:34]} 39. h4 {[%clk 0:01:04]}  Na5 {[%clk 0:00:31]} 40. h5 {[%clk 0:01:03]}  Nb3 {[%clk 0:00:30]} 41. Rc8+ {[%clk 0:00:56]}  Kf7 {[%clk 0:00:19]} 42. Ne5+ {[%clk 0:00:56]}  Kf6 {[%clk 0:00:17]} 43. Rf8+ {[%clk 0:00:51]}  Kg5 {[%clk 0:00:14]} 44. f4+ {[%clk 0:00:28]}  Kxh5 {[%clk 0:00:11]} 45. Kh3 {[%clk 0:00:28]} 1-0


[Site "https://www.chess.com"]

[Event "Titled Tuesday Blitz November 29 Late 2022"]
[White "Hoffmann, Asa"]
[Black "Preotu, Razvan"]
[WhiteFideId "2001470"]
[BlackFideId "2613280"]
[WhiteElo "2117"]
[BlackElo "2407"]
[Result "0-1"]
[Round "01"]
[TimeControl "180+1"]
[Date "2022.11.30"]
[WhiteClock "0:00:23"]
[BlackClock "0:00:30"]

1. d4 {[%clk 0:02:50]}  Nf6 {[%clk 0:02:59]} 2. Bg5 {[%clk 0:02:46]}  d5 {[%clk 0:02:59]} 3. Nd2 {[%clk 0:02:45]}  c5 {[%clk 0:02:58]} 4. e3 {[%clk 0:02:44]}  Nc6 {[%clk 0:02:58]} 5. c3 {[%clk 0:02:44]}  cxd4 {[%clk 0:02:55]} 6. exd4 {[%clk 0:02:43]}  Bf5 {[%clk 0:02:54]} 7. Qb3 {[%clk 0:02:42]}  Qd7 {[%clk 0:02:49]} 8. Ngf3 {[%clk 0:02:40]}  Ne4 {[%clk 0:02:44]} 9. Bf4 {[%clk 0:02:34]}  f6 {[%clk 0:02:43]} 10. Nxe4 {[%clk 0:02:26]}  Bxe4 {[%clk 0:02:41]} 11. Nd2 {[%clk 0:02:24]}  Bg6 {[%clk 0:02:39]} 12. Be2 {[%clk 0:02:23]}  e5 {[%clk 0:02:36]} 13. dxe5 {[%clk 0:02:21]}  fxe5 {[%clk 0:02:37]} 14. Bg3 {[%clk 0:02:20]}  Bc5 {[%clk 0:02:17]} 15. O-O {[%clk 0:02:11]}  O-O {[%clk 0:02:16]} 16. Qd1 {[%clk 0:01:47]}  e4 {[%clk 0:02:02]} 17. b4 {[%clk 0:01:42]}  Bb6 {[%clk 0:02:01]} 18. b5 {[%clk 0:01:36]}  Ne7 {[%clk 0:01:48]} 19. Nb3 {[%clk 0:01:33]}  Nf5 {[%clk 0:01:47]} 20. Bg4 {[%clk 0:01:31]}  Qxb5 {[%clk 0:01:44]} 21. Bxf5 {[%clk 0:01:25]}  Rxf5 {[%clk 0:01:33]} 22. Nd4 {[%clk 0:01:25]}  Bxd4 {[%clk 0:01:32]} 23. cxd4 {[%clk 0:01:22]}  Bh5 {[%clk 0:01:18]} 24. Qb3 {[%clk 0:01:10]}  Be2 {[%clk 0:01:17]} 25. Qxb5 {[%clk 0:01:08]}  Bxb5 {[%clk 0:01:18]} 26. Rfc1 {[%clk 0:01:07]}  Bc4 {[%clk 0:01:16]} 27. a4 {[%clk 0:01:07]}  b6 {[%clk 0:01:12]} 28. a5 {[%clk 0:01:05]}  b5 {[%clk 0:01:12]} 29. a6 {[%clk 0:01:05]}  Rf6 {[%clk 0:01:08]} 30. Be5 {[%clk 0:01:01]}  Re6 {[%clk 0:01:08]} 31. Ra5 {[%clk 0:00:55]}  Rc8 {[%clk 0:01:08]} 32. Rb1 {[%clk 0:00:50]}  Rcc6 {[%clk 0:01:07]} 33. h3 {[%clk 0:00:46]}  Rxa6 {[%clk 0:01:06]} 34. Raxb5 {[%clk 0:00:45]}  Bxb5 {[%clk 0:01:05]} 35. Rxb5 {[%clk 0:00:45]}  Kf7 {[%clk 0:00:44]} 36. Rxd5 {[%clk 0:00:44]}  Ra1+ {[%clk 0:00:39]} 37. Kh2 {[%clk 0:00:44]}  Ra2 {[%clk 0:00:40]} 38. Kg3 {[%clk 0:00:39]}  Rg6+ {[%clk 0:00:39]} 39. Kf4 {[%clk 0:00:34]}  Rxf2+ {[%clk 0:00:40]} 40. Kxe4 {[%clk 0:00:34]}  Rgxg2 {[%clk 0:00:37]} 41. Rd7+ {[%clk 0:00:33]}  Ke6 {[%clk 0:00:37]} 42. Rd6+ {[%clk 0:00:33]}  Ke7 {[%clk 0:00:37]} 43. Rc6 {[%clk 0:00:30]}  Rc2 {[%clk 0:00:34]} 44. Ra6 {[%clk 0:00:29]}  Ra2 {[%clk 0:00:34]} 45. Rc6 {[%clk 0:00:29]}  Rgc2 {[%clk 0:00:35]} 46. d5 {[%clk 0:00:24]}  Ra4+ {[%clk 0:00:33]} 47. Kf5 {[%clk 0:00:23]}  Rxc6 {[%clk 0:00:30]} 48. dxc6 {[%clk 0:00:23]}  Rc4 {[%clk 0:00:30]} 49. c7 {[%clk 0:00:23]}  a5 {[%clk 0:00:30]} 0-1


[Site "https://www.chess.com"]

[Event "Titled Tuesday Blitz November 29 Late 2022"]
[White "Indjic, Aleksandar"]
[Black "Gavilan Diaz, Mario"]
[WhiteFideId "911925"]
[BlackFideId "2260905"]
[WhiteElo "2943"]
[BlackElo "2503"]
[Result "1-0"]
[Round "01"]
[TimeControl "180+1"]
[Date "2022.11.30"]
[WhiteClock "0:01:32"]
[BlackClock "0:00:16"]

1. Nc3 {[%clk 0:02:58]}  d5 {[%clk 0:02:56]} 2. d4 {[%clk 0:02:58]}  Nf6 {[%clk 0:02:55]} 3. Bf4 {[%clk 0:02:58]}  c5 {[%clk 0:02:54]} 4. e3 {[%clk 0:02:58]}  a6 {[%clk 0:02:51]} 5. a3 {[%clk 0:02:53]}  Nc6 {[%clk 0:02:46]} 6. h3 {[%clk 0:02:51]}  Bf5 {[%clk 0:02:42]} 7. Nf3 {[%clk 0:02:51]}  e6 {[%clk 0:02:41]} 8. Bd3 {[%clk 0:02:39]}  Bxd3 {[%clk 0:02:37]} 9. Qxd3 {[%clk 0:02:40]}  cxd4 {[%clk 0:02:34]} 10. exd4 {[%clk 0:02:40]}  Bd6 {[%clk 0:02:25]} 11. Bg5 {[%clk 0:02:40]}  h6 {[%clk 0:02:23]} 12. Bxf6 {[%clk 0:02:40]}  Qxf6 {[%clk 0:02:22]} 13. Ne2 {[%clk 0:02:40]}  O-O {[%clk 0:02:20]} 14. c3 {[%clk 0:02:40]}  e5 {[%clk 0:02:04]} 15. dxe5 {[%clk 0:02:39]}  Nxe5 {[%clk 0:02:04]} 16. Nxe5 {[%clk 0:02:39]}  Qxe5 {[%clk 0:02:03]} 17. Kf1 {[%clk 0:02:32]}  Rfe8 {[%clk 0:02:00]} 18. Rd1 {[%clk 0:02:28]}  Rad8 {[%clk 0:01:56]} 19. Nd4 {[%clk 0:02:21]}  Bc5 {[%clk 0:01:55]} 20. Nf3 {[%clk 0:02:17]}  Qf4 {[%clk 0:01:45]} 21. g3 {[%clk 0:02:14]}  Qe4 {[%clk 0:01:40]} 22. Kg2 {[%clk 0:02:07]}  Qe2 {[%clk 0:01:40]} 23. Qxe2 {[%clk 0:02:07]}  Rxe2 {[%clk 0:01:40]} 24. Rd2 {[%clk 0:02:07]}  Rxd2 {[%clk 0:01:27]} 25. Nxd2 {[%clk 0:02:08]}  d4 {[%clk 0:01:23]} 26. Nb3 {[%clk 0:02:08]}  Bb6 {[%clk 0:01:22]} 27. c4 {[%clk 0:02:05]}  Rc8 {[%clk 0:01:12]} 28. Rc1 {[%clk 0:02:04]}  Ba7 {[%clk 0:00:58]} 29. Kf3 {[%clk 0:02:02]}  Kf8 {[%clk 0:00:57]} 30. Ke4 {[%clk 0:02:00]}  Re8+ {[%clk 0:00:54]} 31. Kd3 {[%clk 0:01:59]}  Rd8 {[%clk 0:00:52]} 32. c5 {[%clk 0:02:00]}  Bb8 {[%clk 0:00:45]} 33. c6 {[%clk 0:01:56]}  bxc6 {[%clk 0:00:42]} 34. Rxc6 {[%clk 0:01:57]}  Be5 {[%clk 0:00:39]} 35. Na5 {[%clk 0:01:54]}  Rd5 {[%clk 0:00:29]} 36. b4 {[%clk 0:01:52]}  Bf6 {[%clk 0:00:28]} 37. Nc4 {[%clk 0:01:48]}  Rf5 {[%clk 0:00:26]} 38. f4 {[%clk 0:01:46]}  Kg8 {[%clk 0:00:24]} 39. Rxa6 {[%clk 0:01:45]}  h5 {[%clk 0:00:24]} 40. Ke4 {[%clk 0:01:42]}  Rb5 {[%clk 0:00:20]} 41. Ra8+ {[%clk 0:01:36]}  Kh7 {[%clk 0:00:19]} 42. g4 {[%clk 0:01:36]}  hxg4 {[%clk 0:00:18]} 43. hxg4 {[%clk 0:01:37]}  Rb7 {[%clk 0:00:19]} 44. g5 {[%clk 0:01:34]}  Be7 {[%clk 0:00:18]} 45. Kxd4 {[%clk 0:01:33]}  Rd7+ {[%clk 0:00:19]} 46. Ke4 {[%clk 0:01:33]}  Rd1 {[%clk 0:00:18]} 47. Ne5 {[%clk 0:01:33]}  Re1+ {[%clk 0:00:18]} 48. Kd3 {[%clk 0:01:33]}  f6 {[%clk 0:00:19]} 49. g6+ {[%clk 0:01:31]}  Kh6 {[%clk 0:00:16]} 50. Rh8# {[%clk 0:01:32]} 1-0


[Site "https://www.chess.com"]

[Event "Titled Tuesday Blitz November 29 Late 2022"]
[White "Janaszak, Dawid"]
[Black "Winkels, Marcel"]
[WhiteFideId "1119206"]
[BlackFideId "1003887"]
[WhiteElo "2226"]
[BlackElo "1900"]
[Result "1-0"]
[Round "01"]
[TimeControl "180+1"]
[Date "2022.11.30"]
[WhiteClock "0:02:07"]
[BlackClock "0:01:07"]

1. e4 {[%clk 0:03:00]}  c5 {[%clk 0:02:58]} 2. Nc3 {[%clk 0:03:00]}  d6 {[%clk 0:02:57]} 3. d4 {[%clk 0:02:58]}  cxd4 {[%clk 0:02:56]} 4. Qxd4 {[%clk 0:02:59]}  Nc6 {[%clk 0:02:52]} 5. Qd2 {[%clk 0:02:59]}  g6 {[%clk 0:02:52]} 6. b3 {[%clk 0:02:59]}  Bh6 {[%clk 0:02:50]} 7. f4 {[%clk 0:02:59]}  e5 {[%clk 0:02:49]} 8. Nb5 {[%clk 0:02:52]}  Bxf4 {[%clk 0:02:22]} 9. Qxd6 {[%clk 0:02:46]}  Qxd6 {[%clk 0:02:10]} 10. Nxd6+ {[%clk 0:02:47]}  Ke7 {[%clk 0:02:10]} 11. Ba3 {[%clk 0:02:45]}  Kf6 {[%clk 0:01:53]} 12. Ne8+ {[%clk 0:02:45]}  Ke6 {[%clk 0:01:32]} 13. Nc7+ {[%clk 0:02:24]}  Kd7 {[%clk 0:01:13]} 14. Nxa8 {[%clk 0:02:24]}  Nd4 {[%clk 0:01:12]} 15. Bd3 {[%clk 0:02:14]}  b6 {[%clk 0:01:09]} 16. c3 {[%clk 0:02:09]}  Ne6 {[%clk 0:01:07]} 17. Bb5+ {[%clk 0:02:07]} 1-0


[Site "https://www.chess.com"]

[Event "Titled Tuesday Blitz November 29 Late 2022"]
[White "Khater, Sherif"]
[Black "Tari, Aryan"]
[WhiteFideId "2034280"]
[BlackFideId "1510045"]
[WhiteElo "2511"]
[BlackElo "2981"]
[Result "1-0"]
[Round "01"]
[TimeControl "180+1"]
[Date "2022.11.30"]
[WhiteClock "0:00:32"]
[BlackClock "0:00:15"]

1. e4 {[%clk 0:03:00]}  c6 {[%clk 0:02:50]} 2. Nc3 {[%clk 0:02:59]}  d5 {[%clk 0:02:50]} 3. exd5 {[%clk 0:02:59]}  cxd5 {[%clk 0:02:51]} 4. d4 {[%clk 0:03:00]}  Nf6 {[%clk 0:02:47]} 5. h3 {[%clk 0:03:00]}  g6 {[%clk 0:02:41]} 6. Nf3 {[%clk 0:03:00]}  Bg7 {[%clk 0:02:42]} 7. Bb5+ {[%clk 0:03:00]}  Nbd7 {[%clk 0:02:40]} 8. Ne5 {[%clk 0:03:00]}  O-O {[%clk 0:02:38]} 9. Nxd7 {[%clk 0:03:01]}  Bxd7 {[%clk 0:02:39]} 10. Bxd7 {[%clk 0:03:01]}  Qxd7 {[%clk 0:02:40]} 11. O-O {[%clk 0:03:02]}  b5 {[%clk 0:02:39]} 12. Re1 {[%clk 0:02:58]}  b4 {[%clk 0:02:35]} 13. Ne2 {[%clk 0:02:58]}  Ne4 {[%clk 0:02:33]} 14. Ng3 {[%clk 0:02:57]}  Nxg3 {[%clk 0:02:32]} 15. fxg3 {[%clk 0:02:58]}  Rfc8 {[%clk 0:02:30]} 16. Re2 {[%clk 0:02:44]}  Rc4 {[%clk 0:02:21]} 17. Be3 {[%clk 0:02:43]}  Rac8 {[%clk 0:02:22]} 18. a3 {[%clk 0:02:40]}  a5 {[%clk 0:02:10]} 19. axb4 {[%clk 0:02:39]}  axb4 {[%clk 0:02:11]} 20. Bf2 {[%clk 0:02:31]}  e6 {[%clk 0:02:09]} 21. Qd3 {[%clk 0:02:27]}  h5 {[%clk 0:02:09]} 22. h4 {[%clk 0:02:26]}  Qc7 {[%clk 0:02:07]} 23. Rc1 {[%clk 0:02:15]}  Bh6 {[%clk 0:02:06]} 24. Be3 {[%clk 0:02:15]}  Bxe3+ {[%clk 0:02:02]} 25. Qxe3 {[%clk 0:01:59]}  Qa7 {[%clk 0:01:58]} 26. Rd2 {[%clk 0:01:51]}  Qa2 {[%clk 0:01:58]} 27. Rf1 {[%clk 0:01:41]}  Qxb2 {[%clk 0:01:55]} 28. Rxf7 {[%clk 0:01:36]}  Kxf7 {[%clk 0:01:44]} 29. Rf2+ {[%clk 0:01:33]}  Ke7 {[%clk 0:01:44]} 30. Qg5+ {[%clk 0:01:27]}  Kd7 {[%clk 0:01:40]} 31. Rf7+ {[%clk 0:01:27]}  Kc6 {[%clk 0:01:40]} 32. Qe7 {[%clk 0:01:26]}  Qxd4+ {[%clk 0:01:37]} 33. Kh2 {[%clk 0:01:26]}  Kb5 {[%clk 0:01:31]} 34. Qd7+ {[%clk 0:01:08]}  R8c6 {[%clk 0:01:29]} 35. Rf8 {[%clk 0:01:08]}  Qb6 {[%clk 0:01:25]} 36. Ra8 {[%clk 0:01:00]}  Qc7 {[%clk 0:01:04]} 37. Qe8 {[%clk 0:00:53]}  Rxh4+ {[%clk 0:00:52]} 38. Kg1 {[%clk 0:00:53]}  Qxg3 {[%clk 0:00:27]} 39. Rb8+ {[%clk 0:00:38]}  Kc5 {[%clk 0:00:15]} 40. Qe7+ {[%clk 0:00:32]} 1-0


[Site "https://www.chess.com"]

[Event "Titled Tuesday Blitz November 29 Late 2022"]
[White "Kleiman, Jake"]
[Black "Stanisz, Patryk"]
[WhiteFideId "2020041"]
[BlackFideId "1123106"]
[WhiteElo "2622"]
[BlackElo "2069"]
[Result "1-0"]
[Round "01"]
[TimeControl "180+1"]
[Date "2022.11.30"]
[WhiteClock "0:00:34"]
[BlackClock "0:00:01"]

1. e4 {[%clk 0:03:00]}  c5 {[%clk 0:02:59]} 2. c3 {[%clk 0:03:00]}  Nf6 {[%clk 0:02:59]} 3. e5 {[%clk 0:03:01]}  Nd5 {[%clk 0:02:59]} 4. Bc4 {[%clk 0:03:01]}  Nb6 {[%clk 0:02:59]} 5. Bb3 {[%clk 0:03:01]}  d5 {[%clk 0:02:59]} 6. exd6 {[%clk 0:03:01]}  Qxd6 {[%clk 0:03:00]} 7. Nf3 {[%clk 0:02:59]}  Nc6 {[%clk 0:02:57]} 8. O-O {[%clk 0:02:56]}  Be6 {[%clk 0:02:57]} 9. Bxe6 {[%clk 0:02:55]}  Qxe6 {[%clk 0:02:58]} 10. a4 {[%clk 0:02:56]}  g6 {[%clk 0:02:40]} 11. a5 {[%clk 0:02:56]}  Nd5 {[%clk 0:02:40]} 12. d4 {[%clk 0:02:55]}  cxd4 {[%clk 0:02:18]} 13. Nxd4 {[%clk 0:02:56]}  Nxd4 {[%clk 0:02:18]} 14. Qxd4 {[%clk 0:02:55]}  Nf6 {[%clk 0:02:19]} 15. Na3 {[%clk 0:02:37]}  Bg7 {[%clk 0:02:19]} 16. Bg5 {[%clk 0:02:33]}  O-O {[%clk 0:02:11]} 17. Rfe1 {[%clk 0:02:26]}  Qf5 {[%clk 0:02:11]} 18. Qh4 {[%clk 0:02:24]}  Rfe8 {[%clk 0:01:45]} 19. a6 {[%clk 0:02:19]}  bxa6 {[%clk 0:01:43]} 20. Nc4 {[%clk 0:02:19]}  Rac8 {[%clk 0:01:27]} 21. Ne5 {[%clk 0:01:52]}  Red8 {[%clk 0:00:55]} 22. Nf3 {[%clk 0:01:50]}  Rb8 {[%clk 0:00:33]} 23. Re2 {[%clk 0:01:33]}  Rd6 {[%clk 0:00:26]} 24. Bf4 {[%clk 0:01:25]}  e5 {[%clk 0:00:03]} 25. Rxe5 {[%clk 0:01:11]}  Qc2 {[%clk 0:00:02]} 26. Ree1 {[%clk 0:01:08]}  Rxb2 {[%clk 0:00:01]} 27. Bxd6 {[%clk 0:01:07]}  h6 {[%clk 0:00:01]} 28. Bg3 {[%clk 0:01:04]}  g5 {[%clk 0:00:02]} 29. Qd4 {[%clk 0:00:58]}  Nh5 {[%clk 0:00:02]} 30. Qd1 {[%clk 0:00:41]}  Nxg3 {[%clk 0:00:02]} 31. Qxc2 {[%clk 0:00:37]}  Rxc2 {[%clk 0:00:03]} 32. hxg3 {[%clk 0:00:37]}  Bxc3 {[%clk 0:00:04]} 33. Rac1 {[%clk 0:00:37]}  Bxe1 {[%clk 0:00:03]} 34. Rxc2 {[%clk 0:00:37]}  Bb4 {[%clk 0:00:03]} 35. Rc7 {[%clk 0:00:35]}  a5 {[%clk 0:00:02]} 36. Rxa7 {[%clk 0:00:35]}  Kg7 {[%clk 0:00:01]} 37. Ne5 {[%clk 0:00:34]} 1-0


[Site "https://www.chess.com"]